Cogmind - Beta 17 @@@ ROGUE MODE // 2026.07.05 @ 21:25:14 Player: arcadio rl Result: Destroyed by P-70 Sage with High-powered Shock Rifle Performance ------------- Evolutions (5) 2500 Regions Visited (15) 3000 Robots Destroyed (93) 465 Value Destroyed (4200) 4200 Prototype IDs (31) 620 Alien Tech Used (0) 0 Bonus (5141) 5141 TOTAL SCORE: 15926 Bonus ------- High Alert Combat Kills 395 Follower Combat Kills 1846 Entered Garrisons 600 Used RIF Installer 1500 Entered DSFs 500 Aligned with FarCom 300 Cogmind --------- Core Integrity 0/1000 Matter 226/300 Energy 99/100 System Corruption 10% Temperature Cool (0) Movement Core (50) Location -5/Factory Parts ------- > --- POWER (2) -------- (None) > --- PROPULSION (5) --- (None) > --- UTILITY (7) ------ Advanced Hacking Suite Relay Coupler [NC] (15) > --- WEAPON (3) ------- (None) > --- INVENTORY (5) ---- Hardened Medium Armor Plating Hardened Medium Armor Plating Hardened Medium Armor Plating Relay Coupler [Brawler] (29) Scythe Peak State ------------ > --- POWER ------------ Angular Momentum Engine Angular Momentum Engine > --- PROPULSION ------- Medium Treads Heavy Treads Heavy Treads > --- UTILITY ---------- Coolant Injector Huge Storage Unit Targeting Computer Hardened Medium Armor Plating Improved Hacking Suite Advanced Hacking Suite Relay Coupler [Grunt] > --- WEAPON ----------- Beamcaster Beamcaster Beamcaster > --- INVENTORY -------- Light Angular Momentum Engine Light Angular Momentum Engine Light Fission Core Improved Medium Treads Heavy Treads Heavy Treads Advanced Heat Sink Improved Cooling System IFF Parser Hardened Medium Armor Plating Hardened Medium Armor Plating Authchip [Armor] Relay Coupler [NC] Relay Coupler [Swarmer] Relay Coupler [Grunt] Relay Coupler [Grunt] Relay Coupler [Brawler] Relay Coupler [Sentry] Relay Coupler [Hunter] System Guard Precision Rocket Launcher Remote Datajack [Rating: 86] Favorites ----------- Power Light Angular Momentum Engine Engine Light Angular Momentum Engine Power Core Light Nuclear Core Propulsion Light Treads Treads Light Treads Leg Carbon-fiber Leg Hover Unit Backup Propulsion III Utility Large Storage Unit Device Improved Heat Sink Storage Large Storage Unit Processor Targeting Computer Hackware Relay Coupler [Grunt] Protection Improved Light Armor Plating Weapon Heavy EM Pulse Gun Energy Gun Heavy EM Pulse Gun Energy Cannon Guided Plasma Cannon Ballistic Gun Flak Gun Ballistic Cannon Gauss Cannon Launcher Precision Rocket Launcher Special Weapon Remote Datajack Slashing Weapon Scythe Special Melee Weapon Datajack Build | -11 -10 -10 -10 -9 -8 -8 -7 -7 -6 -6 -6 -6 -6 -6 -5 ------- Run | Yrd Mat Min Exi Min Mat Gar Fac Gar Fac Was Fac Gar Fac DSF Fac Slots Evolved 10 | . . . . . 4 . 2 . 2 . . . . . 2 Power 1 | . . . . . . . . . 1 . . . . . . Propulsion 3 | . . . . . 2 . . . . . . . . . 1 Utility 5 | . . . . . 2 . 1 . 1 . . . . . 1 Weapon 1 | . . . . . . . 1 . . . . . . . . Parts Attached 109 | 6 12 . . . 12 3 2 19 21 8 3 . 1 1 21 Power 16 | 1 2 . . . 1 . . 2 3 . 1 . 1 . 5 Engine 9 | 1 . . . . 1 . . 1 2 . . . 1 . 3 Core 7 | . 2 . . . . . . 1 1 . 1 . . . 2 Reactor . | . . . . . . . . . . . . . . . . Propulsion 29 | 2 3 . . . 7 . . 5 6 2 2 . . . 2 Treads 25 | 2 3 . . . 7 . . 5 2 2 2 . . . 2 Leg 4 | . . . . . . . . . 4 . . . . . . Wheel . | . . . . . . . . . . . . . . . . Hover . | . . . . . . . . . . . . . . . . Flight . | . . . . . . . . . . . . . . . . Utility 35 | 1 4 . . . 3 2 1 8 6 3 . . . 1 6 Device 14 | . 2 . . . . 1 . 4 4 1 . . . . 2 Storage 3 | 1 1 . . . . . . . . 1 . . . . . Processor 6 | . 1 . . . 1 . . 2 1 1 . . . . . Hackware 6 | . . . . . 1 . . . 1 . . . . . 4 Protection 6 | . . . . . 1 1 1 2 . . . . . 1 . Artifact . | . . . . . . . . . . . . . . . . Weapon 29 | 2 3 . . . 1 1 1 4 6 3 . . . . 8 Energy Gun 13 | . 2 . . . . 1 . . 4 3 . . . . 3 Energy Cannon 3 | . . . . . 1 . 1 1 . . . . . . . Ballistic Gun 5 | 2 . . . . . . . 3 . . . . . . . Ballistic Cannon 1 | . . . . . . . . . 1 . . . . . . Launcher 2 | . . . . . . . . . . . . . . . 2 Special Weapon 1 | . . . . . . . . . 1 . . . . . . Impact Weapon . | . . . . . . . . . . . . . . . . Slashing Weapon 3 | . . . . . . . . . . . . . . . 3 Piercing Weapon . | . . . . . . . . . . . . . . . . Special Melee Weapon 1 | . 1 . . . . . . . . . . . . . . Unidentified Prototypes 1 | . . . . . . . . . . . . . . . 1 Parts Lost 64 | . . . . . . 1 1 22 12 . . . . . 28 Power 9 | . . . . . . . . 2 2 . . . . . 5 Propulsion 19 | . . . . . . . 1 8 3 . . . . . 7 Utility 15 | . . . . . . . . 8 1 . . . . . 6 Weapon 21 | . . . . . . 1 . 4 6 . . . . . 10 Highest Loss Streak 20 | . . . . . . 1 1 20 5 . . . . . 17 To Critical Strikes . | . . . . . . . . . . . . . . . . Average Backups 14 | 2 13 15 13 11 11 12 12 12 9 18 18 19 19 21 20 Power 1 | . 2 2 2 2 1 1 1 1 . . . 1 1 2 1 Propulsion 2 | 1 1 3 3 3 2 3 3 2 . 5 3 3 3 4 2 Utility 8 | . 5 7 5 4 3 4 5 7 7 10 12 13 12 13 12 Weapon 1 | . 2 2 1 1 2 2 1 1 1 1 1 1 1 1 2 Tool/Special . | . . . . . . . . . . . . . . . . Unused Backups 45 | . 8 . 4 . 1 1 . 5 1 2 1 3 1 3 15 Power 5 | . 2 . . . . . . 1 . . 1 . . . 1 Propulsion 5 | . 4 . . . . . . . 1 . . . . . . Utility 28 | . 1 . 2 . 1 . . 4 . 2 . 3 1 3 11 Weapon 7 | . 1 . 2 . . 1 . . . . . . . . 3 Tool/Special . | . . . . . . . . . . . . . . . . Average Slot Usage (%) 91 | . 99 100 100 100 97 100 99 88 83 82 85 86 86 86 82 Engine 4 | . 1 . . . 6 9 7 5 7 6 6 6 6 6 6 Core 6 | . 12 14 14 14 2 . . . 2 6 6 6 6 6 3 Treads 21 | . 28 28 28 28 34 36 29 25 6 11 12 13 13 13 15 Leg 1 | . . . . . . . . . 13 1 . . . . . Device 10 | . 12 14 14 14 8 9 7 6 14 13 13 13 13 8 4 Storage 8 | . 14 14 14 14 9 9 7 6 6 6 6 6 6 6 5 Processor 7 | . 1 . . . 8 9 7 7 14 13 13 13 13 13 5 Hackware 4 | . . . . . 7 . . . . 6 6 6 6 6 20 Protection 2 | . . . . . 1 8 14 11 . . . . . 4 1 Energy Gun 15 | . 26 28 28 28 14 9 7 2 3 8 19 20 20 20 14 Energy Cannon 2 | . . . . . 3 9 15 12 . . . . . . . Ballistic Gun 1 | . . . . . . . . 2 9 . . . . . . Peak Build Rating 86 | 6 15 15 17 17 35 36 43 41 59 78 75 75 75 73 86 Average Rating 42 | 5 13 15 15 17 28 35 42 34 47 66 74 74 74 72 76 On Entrance 39 | . 6 15 15 17 17 35 36 41 32 46 75 75 74 75 72 Avg Prop Armor Cover (%) 6 | . . . . . . . . . 6 5 . . . . 18 Naked Turns 5 | . . . . . . . . 5 . . . . . . . Heaviest Build 130 | 13 32 32 32 32 43 46 57 57 62 113 113 113 113 120 130 Greatest Support 170 | 40 40 40 40 40 82 82 82 80 70 140 140 140 140 140 170 Greatest Overweight (x) 30 | . . . . . 1 . . 9 17 13 . . . . 30 Average Overweight (x) . | . . . . . . . . . . . . . . . . Largest Inventory Capacity 25 | 8 15 15 15 15 15 15 15 15 15 25 25 25 25 25 25 Average Capacity 18 | 7 14 15 15 15 15 15 15 14 15 23 25 25 25 25 24 Most Carried 25 | 6 15 15 15 15 15 15 15 15 15 25 25 25 25 25 25 Average Carried 16 | 2 13 15 14 14 14 14 13 12 10 21 23 24 24 23 21 Final Capacity 25 | 8 15 15 15 15 15 15 15 15 15 25 25 25 25 25 5 Final Carried 25 | 6 15 15 14 15 15 14 14 7 14 24 24 24 25 25 5 Class Distribution -------------------- 47% | Mutant 14% | Bothacker-Tank 13% | Scavenger-Tank 7% | Scavenger-Gunner 6% | Scavenger-Mutant 4% | Tank 3% | Hacker-Mutant Dominant Class ---------------- Mutant | -10/Materials Mutant | -10/Mines Mutant | -10/Exiles Mutant | -9/Mines Mutant | -8/Materials Mutant | -8/Garrison Tank | -7/Factory Mutant | -7/Garrison Scavenger-Gunner | -6/Factory Scavenger-Mutant | -6/Waste Scavenger-Tank | -6/Factory Bothacker-Tank | -6/Garrison Bothacker-Tank | -6/Factory Bothacker-Tank | -6/DSF Bothacker-Tank | -5/Factory Resources | -11 -10 -10 -10 -9 -8 -8 -7 -7 -6 -6 -6 -6 -6 -6 -5 ----------- Run | Yrd Mat Min Exi Min Mat Gar Fac Gar Fac Was Fac Gar Fac DSF Fac Matter Collected 2141 | 174 267 13 . 41 210 30 . 220 339 400 85 . . 20 342 Remotely . | . . . . . . . . . . . . . . . . Salvage Created 4184 | . 626 96 . 60 531 279 . 759 626 . . 121 . 64 1022 Parts 179 | . 25 5 . 6 30 11 . 27 21 . . 7 . 1 46 Haulers Intercepted 6 | . 2 . . . 2 . . . 1 . . . . 1 . Recyclers Shooed . | . . . . . . . . . . . . . . . . Parts Field Recycled . | . . . . . . . . . . . . . . . . Retrieved Matter . | . . . . . . . . . . . . . . . . Parts Self-Destructed . | . . . . . . . . . . . . . . . . Prevented . | . . . . . . . . . . . . . . . . Parts Restored . | . . . . . . . . . . . . . . . . Kills | -11 -10 -10 -10 -9 -8 -8 -7 -7 -6 -6 -6 -6 -6 -6 -5 ------- Run | Yrd Mat Min Exi Min Mat Gar Fac Gar Fac Was Fac Gar Fac DSF Fac Combat Hostiles Destroyed 74 | . 7 2 . 3 6 11 . 15 12 . . 4 . . 14 Guns 41 | . 7 1 . 3 1 . . 2 11 . . 4 . . 12 Cannons 28 | . . . . . 5 11 . 11 1 . . . . . . AOE 2 | . . 1 . . . . . . . . . . . . 1 Classes Destroyed 14 | . 6 . . 1 3 1 . 2 1 . . . . . . Worker 4 | . 1 . . . . . . . . . . . . . 3 Builder 2 | . 1 . . . . . . . . . . . . . 1 Hauler 6 | . 2 . . . 2 . . . 1 . . . . 1 . Recycler 2 | . 1 . . . 1 . . . . . . . . . . Operator 1 | . . . . . 1 . . . . . . . . . . Watcher 4 | . 1 . . . . . . . . . . . . . 3 Swarmer 13 | . . . . 3 . 7 . . . . . 3 . . . Grunt 32 | . 7 2 . . 2 2 . 7 4 . . 1 . . 7 Duelist 2 | . . . . . 1 . . . 1 . . . . . . Sentry 11 | . . . . . 3 1 . 5 2 . . . . . . Demolisher 1 | . . . . . . 1 . . . . . . . . . Hunter 7 | . . . . . . . . 2 2 . . . . . 3 Programmer 7 | . . . . . . . . . 3 . . . . . 4 Behemoth 1 | . . . . . . . . 1 . . . . . . . Best Kill Streak 4 | . 3 2 . 3 2 3 . 4 3 . . 3 . 1 3 Combat Bots Only 4 | . 2 2 . 3 2 3 . 4 2 . . 3 . . 3 Max Kills in Single Turn 2 | . 1 1 . 2 1 1 . 1 1 . . 2 . 1 1 Gunslinging 1 | . . . . 1 . . . . . . . 1 . . . Exploded 1 | . . 1 . . . . . . . . . . . . 1 Melee . | . . . . . . . . . . . . . . . . Uniques/NPCs Destroyed . | . . . . . . . . . . . . . . . . Combat | -11 -10 -10 -10 -9 -8 -8 -7 -7 -6 -6 -6 -6 -6 -6 -5 -------- Run | Yrd Mat Min Exi Min Mat Gar Fac Gar Fac Was Fac Gar Fac DSF Fac Hostile Shots Fired 906 | . 19 7 . 2 15 57 18 295 207 . . 7 . 11 268 Missed 247 | . 3 . . 1 3 14 6 89 60 . . 2 . 2 67 Hits 659 | . 16 7 . 1 12 43 12 206 147 . . 5 . 9 201 Melee 3 | . . . . . . . . . 3 . . . . . . Projectile 656 | . 16 7 . 1 12 43 12 206 144 . . 5 . 9 201 AOE 7 | . . . . . . 7 . . . . . . . . . Critical Strikes 25 | . 1 . . . . 3 . 3 2 . . . . . 16 Part Disruptions 1 | . . . . . . . . . . . . . . . 1 Damage Taken 10787 | . 346 133 . 7 164 618 65 2885 2037 . . 115 14 216 4187 Core 1971 | . 60 . . . 30 69 6 461 288 . . 35 14 . 1008 Absorbed by Shields 43 | . . . . . . . . 43 . . . . . . . Redirected to Shielding 48 | . . . . . . . . 48 . . . . . . . Ignored by Resistances 7 | . . . . . . . . . 7 . . . . . . Regen/Repaired (Parts) 470 | . 45 . . . 28 . . . . 174 223 . . . . Core Remaining (%) 70 | 100 . . . 76 . 82 . 33 . . . . . 60 . Volleys Fired 284 | . 32 6 . 2 26 24 1 55 52 2 1 4 1 6 72 Largest 3 | . 2 2 . 2 2 1 1 3 3 1 1 3 3 3 3 Hottest 225 | . 90 90 . 90 120 120 120 185 207 5 5 225 225 225 225 Shots Fired 523 | . 64 12 . 4 31 24 1 75 118 2 1 12 3 18 158 Gun 380 | . 64 12 . 4 10 . . 16 102 . . 12 3 18 139 Cannon 118 | . . . . . 21 24 1 59 13 . . . . . . Launcher 9 | . . . . . . . . . . . . . . . 9 Special 16 | . . . . . . . . . 3 2 1 . . . 10 Kinetic 75 | . . . . . . . . 4 71 . . . . . . Thermal 307 | . . . . . 21 24 1 71 44 . . 12 3 18 113 Explosive 9 | . . . . . . . . . . . . . . . 9 Electromagnetic 116 | . 64 12 . 4 10 . . . . . . . . . 26 Robot Hit Streak 95 | . 8 8 . 10 22 45 46 95 9 4 5 6 2 11 15 Robot Miss Streak 9 | . 5 2 . 1 1 . . 1 9 . . 3 1 1 4 Penetration Max . | . . . . . . . . . . . . . . . . Secondary Targets 6 | . . . . 1 . . . . 1 . . 2 . . 2 Max Gunslinging Chain 1 | . . . . 1 . . . . 1 . . 1 . . 1 Shots Hit Robots 406 | . 41 10 . 3 29 23 1 69 93 2 1 4 2 16 112 Core Hits 182 | . 16 2 . 3 11 8 . 24 70 . . 4 1 2 41 Critical Kills . | . . . . . . . . . . . . . . . . Critical Parts Destroyed . | . . . . . . . . . . . . . . . . Critical Strikes 6 | . 1 . . . . . . . 3 . . . . 1 1 Burn 3 | . . . . . . . . . 1 . . . . 1 1 Blast 2 | . . . . . . . . . 2 . . . . . . Corrupt 1 | . 1 . . . . . . . . . . . . . . Melee Attacks 3 | . . . . . . . . . . . . . . . 3 Impact . | . . . . . . . . . . . . . . . . Slashing 3 | . . . . . . . . . . . . . . . 3 Piercing . | . . . . . . . . . . . . . . . . Sneak Attacks 2 | . . . . . . . . . . . . . . . 2 Combat Hostiles . | . . . . . . . . . . . . . . . . Follow-up Attacks . | . . . . . . . . . . . . . . . . Damage Inflicted 9911 | . 838 176 . 39 867 808 31 2154 1651 . . 83 43 341 2880 Guns 5357 | . 688 144 . 39 115 . . 294 1411 . . 83 43 341 2199 Cannons 3664 | . . . . . 752 808 31 1842 231 . . . . . . Explosions 737 | . 144 32 . . . . . . 9 . . . . . 552 Melee 124 | . . . . . . . . . . . . . . . 124 Ramming 29 | . 6 . . . . . . 18 . . . . . . 5 Kinetic 1093 | . . . . . . . . 98 995 . . . . . . Thermal 6855 | . 144 32 . . 752 808 31 2038 647 . . 83 43 341 1936 Explosive 364 | . . . . . . . . . . . . . . . 364 Electromagnetic 1446 | . 688 144 . 39 115 . . . 9 . . . . . 451 Impact . | . . . . . . . . . . . . . . . . Slashing 124 | . . . . . . . . . . . . . . . 124 Piercing . | . . . . . . . . . . . . . . . . Highest Corruption 10 | . 2 2 2 2 . . . . 4 1 . . . . 10 Average Corruption 2 | . 1 2 2 2 . . . . 2 1 . . . . 3 Corruption Purged 4 | . . . . . . . . . 3 1 . . . . . Corruption Blocked . | . . . . . . . . . . . . . . . . Effects 30 | . 8 3 7 6 . . . . 3 . . . . . 3 Message Errors 6 | . 2 . 1 3 . . . . . . . . . . . Matter Fused 14 | . 2 2 4 1 . . . . 2 . . . . . 3 Heat Flow Errors 4 | . . 1 1 1 . . . . 1 . . . . . . Energy Discharges 2 | . 1 . 1 . . . . . . . . . . . . Data Loss (minor) 2 | . 1 . . 1 . . . . . . . . . . . Data Loss (major) 2 | . 2 . . . . . . . . . . . . . . Overload Shots . | . . . . . . . . . . . . . . . . Overflow Damage 181 | . . 19 . . 33 70 . . 2 . . . . . 57 Projectiles 105 | . . . . . 33 70 . . 2 . . . . . . Explosions 32 | . . 19 . . . . . . . . . . . . 13 Melee 44 | . . . . . . . . . . . . . . . 44 Knockbacks 3 | . . . . . . . . . 3 . . . . . . Impact . | . . . . . . . . . . . . . . . . Kinetic 3 | . . . . . . . . . 3 . . . . . . Secondary . | . . . . . . . . . . . . . . . . Self-Inflicted Damage 175 | . 99 36 . . . . . 7 33 . . . . . . Shots 5 | . 3 1 . . . . . . 1 . . . . . . Rammed 9 | . 3 . . . . . . 4 . . . . . . 2 Targets Rammed 9 | . 3 . . . . . . 4 . . . . . . 2 Kicked . | . . . . . . . . . . . . . . . . Crushed . | . . . . . . . . . . . . . . . . Highest Temperature 434 | . 147 266 119 77 423 275 44 434 204 . . 190 168 198 355 Average Temperature 102 | . 37 59 73 45 136 104 25 138 44 . . 91 86 116 110 Received Heat Transfer 2241 | . 129 57 . . 81 108 . 684 207 . . 9 9 . 957 Effects 8 | . . . . . 2 3 . 2 . . . . . . 1 Shutdowns 2 | . . . . . 1 . . 1 . . . . . . . Energy Bleed 2 | . . . . . 1 . . . . . . . . . 1 Interference 3 | . . . . . . 3 . . . . . . . . . Short Circuit 1 | . . . . . . . . 1 . . . . . . . Siege Activations . | . . . . . . . . . . . . . . . . Martial Activations . | . . . . . . . . . . . . . . . . Shielding Activations . | . . . . . . . . . . . . . . . . Robots Disrupted . | . . . . . . . . . . . . . . . . Combat Hostiles . | . . . . . . . . . . . . . . . . Robots Corrupted 2 | . 1 . . . . . . . . . . . . . 1 Combat Hostiles 1 | . . . . . . . . . . . . . . . 1 Parts Fried 6 | . 5 . . . . . . . . . . . . . 1 Impact Corruptions . | . . . . . . . . . . . . . . . . Robots Melted 2 | . . . . . . . . 2 . . . . . . . Combat Hostiles 2 | . . . . . . . . 2 . . . . . . . Parts Melted 23 | . . . . . 3 3 . 9 3 . . . . 1 4 Heat Transferred 13144 | . 250 50 . . 1680 1840 80 3877 1295 . . 148 74 666 3184 Parts Sabotaged . | . . . . . . . . . . . . . . . . Parts Stolen . | . . . . . . . . . . . . . . . . Parts Stripped . | . . . . . . . . . . . . . . . . Power Chain Reactions 5 | . 3 1 . . . . . . . . . . . . 1 Alert | -11 -10 -10 -10 -9 -8 -8 -7 -7 -6 -6 -6 -6 -6 -6 -5 ------- Run | Yrd Mat Min Exi Min Mat Gar Fac Gar Fac Was Fac Gar Fac DSF Fac Maximum Alert Level 3 | . . . . . . 1 1 3 1 . . 3 2 2 2 Low Security (%) 56 | 100 100 100 . 100 100 21 90 9 25 100 100 18 . . . Level 1 22 | . . . . . . 78 9 11 74 . . 43 46 32 35 Level 2 19 | . . . . . . . . 70 . . . 5 53 67 64 Level 3 2 | . . . . . . . . 8 . . . 32 . . . Level 4 . | . . . . . . . . . . . . . . . . Level 5 . | . . . . . . . . . . . . . . . . High Security . | . . . . . . . . . . . . . . . . Max Security . | . . . . . . . . . . . . . . . . Sterilizations 1 | . . . . . . . . . . . . . . 1 . Peak Influence 876 | . 74 45 . 70 58 390 204 726 326 69 143 876 438 630 672 Initial 438 | . . . . . . 26 204 65 307 69 . 86 438 241 330 Average 203 | . 10 6 . 12 21 248 155 511 238 9 50 463 394 443 443 Influence Increases 4927 | . 279 55 . 70 217 374 . 761 436 . 392 790 17 409 1127 Destroy 0b10 Robot/C 2600 | . 140 40 . 60 120 280 . 540 240 . 140 360 . 160 520 Destroy 0b10 Robot/NC 130 | . 30 . . . 20 . . . 5 . 5 . 5 20 45 Destroy Leader 440 | . 46 10 . 10 44 20 . 30 82 . 40 . 2 30 126 Allied During Kill 932 | . . . . . . 9 . 35 . . 185 360 5 156 182 Successful Hack 98 | . 20 . . . 18 . . . 21 . 15 . 5 . 19 Disable Machine 135 | . 30 . . . 15 . . . 75 . . . . 15 . Anti-Garrison Action 150 | . . . . . . 50 . 50 . . . 50 . . . Destroy Structure 277 | . 13 5 . . . . . 1 13 . 7 20 . 28 190 Partial Spotted 15 | . . . . . . . . . . . . . . . 15 Lose Combat Pursuer 150 | . . . . . . 15 . 105 . . . . . . 30 Influence Decreases 4562 | . 279 55 . 70 176 25 296 269 823 199 268 78 508 124 1392 Entered New Map 1479 | . . . . . . 15 186 29 279 130 . 38 398 104 300 Time Decay 1943 | . 279 55 . 70 176 . 100 . 404 69 198 . 110 . 482 Lost Part 640 | . . . . . . 10 10 220 120 . . . . . 280 Lost Ally 350 | . . . . . . . . 20 20 . 70 40 . 20 180 Purge Threat 150 | . . . . . . . . . . . . . . . 150 Squads Dispatched 25 | . 2 . . . 1 . . . 8 . 3 . . 2 9 Investigation 3 | . 1 . . . . . . . 1 . 1 . . . . Extermination 5 | . . . . . . . . . 2 . 1 . . . 2 Reinforcement 13 | . 1 . . . . . . . 4 . . . . 2 6 Assault . | . . . . . . . . . . . . . . . . Garrison 4 | . . . . . 1 . . . 1 . 1 . . . 1 Intercept . | . . . . . . . . . . . . . . . . Searches Triggered . | . . . . . . . . . . . . . . . . Construction Impeded 5 | . . . . . . . . . 2 . . . . . 3 Haulers Reinforced 3 | . . . . . . . . . 1 . . . . . 2 Active Scanning Responses . | . . . . . . . . . . . . . . . . Cargo Convoy Interrupts . | . . . . . . . . . . . . . . . . Stealth | -11 -10 -10 -10 -9 -8 -8 -7 -7 -6 -6 -6 -6 -6 -6 -5 --------- Run | Yrd Mat Min Exi Min Mat Gar Fac Gar Fac Was Fac Gar Fac DSF Fac Distress Signals 7 | . 1 . . . 1 . . 2 . . . . . . 3 Communications Jammed . | . . . . . . . . . . . . . . . . Distress Signals . | . . . . . . . . . . . . . . . . Times Spotted 162 | . 16 3 . 1 11 19 2 32 21 1 4 14 1 5 32 Peak Tracking Total 9 | . 4 3 . 1 3 4 1 9 6 1 2 4 1 3 8 Tactical Retreats 8 | . . . . . . 1 . 5 . . . . . . 2 Traps | -11 -10 -10 -10 -9 -8 -8 -7 -7 -6 -6 -6 -6 -6 -6 -5 ------- Run | Yrd Mat Min Exi Min Mat Gar Fac Gar Fac Was Fac Gar Fac DSF Fac Traps Triggered 9 | . 3 . . . 2 . . 1 1 . . 1 . . 1 Indirectly . | . . . . . . . . . . . . . . . . Trap Hack Attempts 40 | . 16 . . . . . . 24 . . . . . . . Triggered . | . . . . . . . . . . . . . . . . Disarmed 3 | . 2 . . . . . . 1 . . . . . . . Reprogrammed . | . . . . . . . . . . . . . . . . Reused . | . . . . . . . . . . . . . . . . Traps Extracted . | . . . . . . . . . . . . . . . . Installed . | . . . . . . . . . . . . . . . . Triggered . | . . . . . . . . . . . . . . . . Machines | -11 -10 -10 -10 -9 -8 -8 -7 -7 -6 -6 -6 -6 -6 -6 -5 ---------- Run | Yrd Mat Min Exi Min Mat Gar Fac Gar Fac Was Fac Gar Fac DSF Fac Machines Disabled 14 | . 2 . . . 1 1 . 1 5 . . 3 . 1 . Max in Single Turn 3 | . 1 . . . 1 1 . 1 3 . . 1 . . . Garrison Access 1 | . . . . . . . . . . . . . . . 1 Garrison Relay 3 | . . . . . . 1 . 1 . . . 1 . . . Machines Repaired . | . . . . . . . . . . . . . . . . Machines Dismantled . | . . . . . . . . . . . . . . . . Machines Sabotaged . | . . . . . . . . . . . . . . . . Overloaded Fab Kills . | . . . . . . . . . . . . . . . . Hacking | -11 -10 -10 -10 -9 -8 -8 -7 -7 -6 -6 -6 -6 -6 -6 -5 --------- Run | Yrd Mat Min Exi Min Mat Gar Fac Gar Fac Was Fac Gar Fac DSF Fac Machines Accessed 33 | . 8 . 2 . 5 1 1 1 3 . 4 1 2 . 5 Terminals 19 | . 6 . . . 3 1 . 1 1 . 1 1 2 . 3 Fabricators 3 | . . . . . . . . . 1 . 1 . . . 1 Repair Stations 2 | . 1 . . . 1 . . . . . . . . . . Recycling Units 1 | . 1 . . . . . . . . . . . . . . Scanalyzers 2 | . . . . . . . . . 1 . 1 . . . . Garrison Access 4 | . . . . . 1 . 1 . . . 1 . . . 1 Total Hacks 81 | . 21 . 2 . 11 4 1 3 12 . 8 2 4 . 13 Successful 46 | . 12 . 2 . 7 . 1 . 8 . 6 . 1 . 9 Failed 35 | . 9 . . . 4 4 . 3 4 . 2 2 3 . 4 Catastrophic 4 | . 1 . . . . 1 . . . . 1 . . . 1 Database Lockouts . | . . . . . . . . . . . . . . . . Manual 34 | . 13 . 1 . 5 . . . 4 . 2 . 3 . 6 Terminals 56 | . 18 . . . 8 4 . 3 8 . 1 2 4 . 8 Fabricators 7 | . . . . . . . . . 2 . 1 . . . 4 Repair Stations 4 | . 2 . . . 2 . . . . . . . . . . Recycling Units 1 | . 1 . . . . . . . . . . . . . . Scanalyzers 6 | . . . . . . . . . 2 . 4 . . . . Garrison Access 5 | . . . . . 1 . 1 . . . 2 . . . 1 Terminal Hacks 20 | . 6 . 2 . 2 . . . 4 . . . 1 . 5 Record 1 | . . . 1 . . . . . . . . . . . . Robot Analysis 3 | . 1 . . . 1 . . . 1 . . . . . . Prototype ID Bank 2 | . . . . . 1 . . . . . . . . . 1 Open DSF 2 | . . . . . . . . . . . . . 1 . 1 Branch Access Points 1 | . . . . . . . . . . . . . . . 1 Emergency Access Points 2 | . 1 . . . . . . . 1 . . . . . . Terminal Index 1 | . 1 . . . . . . . . . . . . . . Scanalyzer Index 1 | . 1 . . . . . . . . . . . . . . Unreport Threat 1 | . . . . . . . . . . . . . . . 1 Locate Traps 2 | . 1 . . . . . . . 1 . . . . . . Recall Reinforcements 3 | . 1 . . . . . . . 1 . . . . . 1 Proto ID Catalog 1 | . . . 1 . . . . . . . . . . . . Fabricator Hacks 3 | . . . . . . . . . 1 . . . . . 2 Network Status 1 | . . . . . . . . . . . . . . . 1 Load Schematic 1 | . . . . . . . . . 1 . . . . . . Build 1 | . . . . . . . . . . . . . . . 1 Repair Station Hacks 4 | . 2 . . . 2 . . . . . . . . . . Scan Component 2 | . 1 . . . 1 . . . . . . . . . . Repair 2 | . 1 . . . 1 . . . . . . . . . . Recycling Unit Hacks 1 | . 1 . . . . . . . . . . . . . . Report Inventory 1 | . 1 . . . . . . . . . . . . . . Scanalyzer 6 | . . . . . . . . . 2 . 4 . . . . Insert Component 3 | . . . . . . . . . 1 . 2 . . . . Analyze 2 | . . . . . . . . . 1 . 1 . . . . Retrieve Study 1 | . . . . . . . . . . . 1 . . . . Garrison Access Hacks 4 | . . . . . 1 . 1 . . . 1 . . . 1 Unlock Access 3 | . . . . . 1 . 1 . . . 1 . . . . Seal Access 1 | . . . . . . . . . . . . . . . 1 Unauthorized Hacks 8 | . 3 . . . 2 . . . 1 . 1 . . . 1 Terminals 6 | . 3 . . . 2 . . . 1 . . . . . . Botnet 5 | . 2 . . . 2 . . . 1 . . . . . . Operators 1 | . 1 . . . . . . . . . . . . . . Fabricators 1 | . . . . . . . . . . . . . . . 1 Fabnet 1 | . . . . . . . . . . . . . . . 1 Repair Stations . | . . . . . . . . . . . . . . . . Recycling Units . | . . . . . . . . . . . . . . . . Scanalyzers . | . . . . . . . . . . . . . . . . Garrison Access 1 | . . . . . . . . . . . 1 . . . . Restock 1 | . . . . . . . . . . . 1 . . . . Data Cores Recovered 2 | . . . . . 1 . . . . . . . . . 1 Used 1 | . . . . . . . . . . . . . . . 1 Hacking Detections 27 | . 7 . . . 4 1 1 1 3 . 4 1 2 . 3 Full Trace Events 2 | . . . . . . . . . 1 . 1 . . . . Feedback Events . | . . . . . . . . . . . . . . . . Feedback Blocked . | . . . . . . . . . . . . . . . . Robot Schematics Acquired . | . . . . . . . . . . . . . . . . Robots Built 2 | . . . . . . . . . . . . . . . 2 Authchips . | . . . . . . . . . . . . . . . . Time 81 | . . . . . . . . . . . . . . . 81 Total Robot Build Rating 2 | . . . . . . . . . . . . . . . 2 Part Schematics Acquired 2 | . . . . . . . . . 1 . 1 . . . . Parts Built . | . . . . . . . . . . . . . . . . Authchips . | . . . . . . . . . . . . . . . . Time . | . . . . . . . . . . . . . . . . Total Part Build Rating . | . . . . . . . . . . . . . . . . Part Studies Acquired . | . . . . . . . . . . . . . . . . Parts Repaired 2 | . 1 . . . 1 . . . . . . . . . . Time 51 | . 32 . . . 19 . . . . . . . . . . Parts Recycled . | . . . . . . . . . . . . . . . . Recycled Matter . | . . . . . . . . . . . . . . . . Retrieved Matter . | . . . . . . . . . . . . . . . . Retrieved Components . | . . . . . . . . . . . . . . . . Parts Scanalyzed 2 | . . . . . . . . . 1 . 1 . . . . Part Schematics Acquired 2 | . . . . . . . . . 1 . 1 . . . . Parts Damaged 1 | . . . . . . . . . . . 1 . . . . Bothacking | -11 -10 -10 -10 -9 -8 -8 -7 -7 -6 -6 -6 -6 -6 -6 -5 ------------ Run | Yrd Mat Min Exi Min Mat Gar Fac Gar Fac Was Fac Gar Fac DSF Fac Used RIF Installer 3 | . . . . . . 1 . 1 . . . 1 . . . Hotswap 1 | . . . . . . . . . . . . 1 . . . Zone Cloak 1 | . . . . . . . . 1 . . . . . . . Robots Hacked 8 | . . . . . . . . . 2 . 1 . . . 5 Non-combat 3 | . . . . . . . . . . . 1 . . . 2 Combat 5 | . . . . . . . . . 2 . . . . . 3 Robot Hacks Applied 13 | . . . . . . . . . 3 . 1 . . . 9 parse_system 2 | . . . . . . . . . . . 1 . . . 1 no_distress 1 | . . . . . . . . . . . . . . . 1 find_fabricator 1 | . . . . . . . . . . . . . . . 1 drop_inventory 1 | . . . . . . . . . . . . . . . 1 recall_reinforcements 1 | . . . . . . . . . . . . . . . 1 find_garrison 1 | . . . . . . . . . 1 . . . . . . amplify_resonance 1 | . . . . . . . . . . . . . . . 1 disable_weapons 2 | . . . . . . . . . 1 . . . . . 1 formatsys_high 3 | . . . . . . . . . 1 . . . . . 2 Relay Couplers Released 13 | . . . . . . 5 . 3 . . . 5 . . . Machine Destruction 13 | . . . . . . 5 . 3 . . . 5 . . . Attached 3 | . . . . . . . . . 1 . . . . . 2 Fabnet Peak Effective % . | . . . . . . . . . . . . . . . . Robots Rewired . | . . . . . . . . . . . . . . . . Allies Hacked . | . . . . . . . . . . . . . . . . Hacks Repelled . | . . . . . . . . . . . . . . . . Allies | -11 -10 -10 -10 -9 -8 -8 -7 -7 -6 -6 -6 -6 -6 -6 -5 -------- Run | Yrd Mat Min Exi Min Mat Gar Fac Gar Fac Was Fac Gar Fac DSF Fac Total Allies 25 | . . . . . . . . . 1 20 . . . . 4 Largest Group 20 | . . . . . . . . . 1 20 19 15 7 7 8 Highest-Rated Group 779 | . . . . . . . . . 29 779 754 631 300 300 285 Highest-Rated Ally 50 | . . . . . . . . . 29 50 50 50 50 50 50 Total Orders . | . . . . . . . . . . . . . . . . Ally Attacks 239 | . . . . . . 7 . 24 4 9 51 74 1 23 46 Total Damage 9148 | . . . . . . 289 . 1379 76 227 1003 2393 36 1482 2263 Kills 62 | . . . . . . 3 . 12 . 1 8 15 1 8 14 Allies Corrupted . | . . . . . . . . . . . . . . . . Allies Melted . | . . . . . . . . . . . . . . . . Turrets Deployed 3 | . . . . . . 2 . 1 . . . . . . . Intel | -11 -10 -10 -10 -9 -8 -8 -7 -7 -6 -6 -6 -6 -6 -6 -5 ------- Run | Yrd Mat Min Exi Min Mat Gar Fac Gar Fac Was Fac Gar Fac DSF Fac Active Infowar (turns) 160 | . 160 . . . . . . . . . . . . . . Optics 160 | . 160 . . . . . . . . . . . . . . Robot Analysis Total 3 | . 1 . . . 1 . . . 1 . . . . . . Derelict Logs Recovered 1 | . . 1 . . . . . . . . . . . . . Drone Launches . | . . . . . . . . . . . . . . . . Drone Recoveries . | . . . . . . . . . . . . . . . . Exploration | -11 -10 -10 -10 -9 -8 -8 -7 -7 -6 -6 -6 -6 -6 -6 -5 ------------- Run | Yrd Mat Min Exi Min Mat Gar Fac Gar Fac Was Fac Gar Fac DSF Fac Turns Passed 9366 | 92 1647 417 369 440 601 531 204 910 962 544 606 332 224 234 1253 Spaces Moved 4762 | 51 879 250 227 266 256 278 122 403 434 313 283 194 134 127 545 Core 65 | 3 . . . . . . . 34 8 1 . . . . 19 Treads 4309 | 48 879 250 227 266 256 278 122 369 70 280 283 194 134 127 526 Legs 387 | . . . . . . . . . 356 31 . . . . . Wheels . | . . . . . . . . . . . . . . . . Hover 1 | . . . . . . . . . . 1 . . . . . Flight . | . . . . . . . . . . . . . . . . Fastest Speed 50 | 50 160 160 160 160 160 161 161 50 120 120 160 160 160 160 50 Average Speed 161 | 153 160 160 160 160 165 161 161 160 164 158 160 160 160 160 170 Slowest Speed 1550 | 160 160 160 160 160 250 161 166 500 900 700 160 160 160 160 1550 Overloaded Moves . | . . . . . . . . . . . . . . . . Propulsion Burnouts . | . . . . . . . . . . . . . . . . Robots Hopped . | . . . . . . . . . . . . . . . . Potential Cave-ins . | . . . . . . . . . . . . . . . . Cave-ins Triggered . | . . . . . . . . . . . . . . . . Exploration Rate (%) 38 | 3 92 58 59 44 19 43 3 42 13 90 9 35 3 94 14 Regions Visited 15 Branch Regions 3 Pre-discovered Areas 1 | . . . 1 . . . . . . . . . . . . Known Exits Taken 5 | . . 1 . . 1 . 1 . . . 1 . 1 . . Unknown Exits Taken 4 | 1 1 . 1 1 . . . . . . . . . . . Scrap Searched 2 | . . 1 . 1 . . . . . . . . . . . Spaces Dug . | . . . . . . . . . . . . . . . . Terrain Destroyed 106 | . 12 5 . . . . . . 11 . . . . 1 77 Melee . | . . . . . . . . . . . . . . . . Projectile 6 | . . . . . . . . . 2 . . . . 1 3 AOE 100 | . 12 5 . . . . . . 9 . . . . . 74 Terrain Rammed . | . . . . . . . . . . . . . . . . Walls Destroyed . | . . . . . . . . . . . . . . . . Machines Disabled . | . . . . . . . . . . . . . . . . Actions | -11 -10 -10 -10 -9 -8 -8 -7 -7 -6 -6 -6 -6 -6 -6 -5 --------- Run | Yrd Mat Min Exi Min Mat Gar Fac Gar Fac Was Fac Gar Fac DSF Fac Total 5968 | 62 1055 255 235 277 406 343 128 595 579 366 439 209 141 146 732 Wait 525 | . 76 . . 9 86 26 . 65 45 11 135 5 4 3 60 Move 4745 | 50 878 249 226 265 255 276 121 401 434 312 282 192 133 126 545 Hop . | . . . . . . . . . . . . . . . . Pick Up 104 | 6 18 . 4 1 8 6 3 11 13 9 4 4 1 6 10 Fast Attach 49 | 6 2 . . . 5 1 . 9 10 7 1 . . 1 7 Attach 57 | . 1 . . . 6 1 3 12 11 2 4 . . . 17 Detach 22 | . 1 . . . . 1 . 1 6 7 3 . . 1 2 Swap 52 | . 14 . . . 10 1 . 5 7 2 3 . 1 . 9 Drop 76 | . 14 . 5 . 10 7 . 8 1 11 6 4 1 3 6 Fire 284 | . 32 6 . 2 26 24 1 55 52 2 1 4 1 6 72 Melee 2 | . . . . . . . . . . . . . . . 2 Ram 4 | . . . . . . . . 4 . . . . . . . Kick . | . . . . . . . . . . . . . . . . Crush 5 | . 3 . . . . . . . . . . . . . 2 Escape Stasis . | . . . . . . . . . . . . . . . . Rewire 3 | . . . . . . . . . . 3 . . . . . Trap 40 | . 16 . . . . . . 24 . . . . . . . Miscellaneous . | . . . . . . . . . . . . . . . . Route ------- -11/Scrapyard -10/Materials (discovered 4 exits: [*Mat x2] / [*Min] / [*Sub]) -10/Mines (discovered 2 exits: [*Mat] / *Exi) -10/Exiles -9/Mines -8/Materials -8/Garrison -7/Factory -7/Garrison -6/Factory -6/Waste -6/Factory (discovered 2 exits: *Fac / Gar) -6/Garrison -6/Factory -6/DSF -5/Factory (discovered 4 exits: *Upp x2 / Ext x2) History --------- Turn | Location | Event 4 | -11/Scrapyard | Discovered new exit (range 15) 93 | -11/Scrapyard | Entered Materials 313 | -10/Materials | Build established: Mutant 541 | -10/Materials | Discovered new exit (range 9) 661 | -10/Materials | Discovered new exit (range 16) 949 | -10/Materials | Discovered new exit (range 8) 1017 | -10/Materials | Repaired Hvy. EM Pulse Gun 1238 | -10/Materials | Discovered new exit (range 12) 1740 | -10/Materials | Entered Mines 1881 | -10/Mines | Assembled infested the area 1883 | -10/Mines | Discovered new exit (range 14) 2083 | -10/Mines | Identified exit to Exiles 2149 | -10/Mines | Deemed a non-threat by the Exiles lab entrance 2157 | -10/Mines | Entered Exiles 2197 | -10/Exiles | Met 8R-AWN 2223 | -10/Exiles | Met EX-HEX 2268 | -10/Exiles | Met EX-BIN 2287 | -10/Exiles | Aligned with FarCom system 2289 | -10/Exiles | Given EX-Vault access code 2329 | -10/Exiles | Opened EX-Vault 2354 | -10/Exiles | Found Gui. Plasma Cannon 2363 | -10/Exiles | Found Deploy-a-Sentry 2366 | -10/Exiles | Found Deploy-a-Sentry 2369 | -10/Exiles | Found Deploy-a-Sentry 2406 | -10/Exiles | Warned to stay clear of 0b10 Research branches 2454 | -10/Exiles | Met EX-DEC 2463 | -10/Exiles | Learned location of Zion (-6) 2508 | -10/Exiles | Discovered new exit (range 14) 2526 | -10/Exiles | Stole two prototypes: Gui. Plasma Cannon, Deploy-a-Sentry 2526 | -10/Exiles | Entered Mines 2573 | -9/Mines | Met a Derelict bent on vengeance 2760 | -9/Mines | Discovered new exit (range 7) 2966 | -9/Mines | Entered Materials 2966 | -8/Materials | Evolved 4 slots: Propulsion x2, Utility x2 3293 | -8/Materials | Repaired Imp. Heat Sink 3356 | -8/Materials | Garrison activated, responded to threat 3565 | -8/Materials | Identified exit to Garrison 3567 | -8/Materials | Entered Garrison 3655 | -8/Garrison | Triggered checkpoint 3680 | -8/Garrison | Garrison Relay disabled 3705 | -8/Garrison | DAS Turret deployed 3813 | -8/Garrison | Triggered checkpoint 3901 | -8/Garrison | Triggered checkpoint 3998 | -8/Garrison | Discovered new exit (range 15) 4016 | -8/Garrison | DAS Turret deployed 4060 | -8/Garrison | Installed Relay Interface Framework 4098 | -8/Garrison | Entered Factory 4098 | -7/Factory | Evolved 2 slots: Utility x1, Weapon x1 4100 | -7/Factory | FarCom data flow suspended 4301 | -7/Factory | Identified exit to Garrison 4302 | -7/Factory | Entered Garrison 4383 | -7/Garrison | DAS Turret deployed 4402 | -7/Garrison | Build established: Tank 4563 | -7/Garrison | Expanded RIF knowledge: Zone Cloak 4738 | -7/Garrison | Triggered checkpoint 4772 | -7/Garrison | Garrison Relay disabled 4776 | -7/Garrison | Triggered checkpoint 4979 | -7/Garrison | Spotted B-75 Beast 5061 | -7/Garrison | Core integrity fell below 50% 5079 | -7/Garrison | Destroyed B-75 Beast 5091 | -7/Garrison | Lost 20 parts (2p8n6u4w) 5196 | -7/Garrison | Discovered new exit (range 10) 5209 | -7/Garrison | Identified exit to Factory 5212 | -7/Garrison | Entered Factory 5212 | -6/Factory | Evolved 2 slots: Power x1, Utility x1 5439 | -6/Factory | Lost 3 parts (1p2n) 5506 | -6/Factory | Lost 5 parts (1p1u3w) 5858 | -6/Factory | Build established: Scavenger-Gunner 6111 | -6/Factory | Garrison activated, responded to threat 6174 | -6/Factory | Sucked down chute 6174 | -6/Factory | Entered Waste 6175 | -6/Waste | Joined by Warlord forces that had cleared the area 6204 | -6/Waste | Lost 4 parts (1n3w) 6295 | -6/Waste | Found Prototype Hackware 6321 | -6/Waste | Found Damper Plating 6454 | -6/Waste | Build established: Scavenger-Mutant 6596 | -6/Waste | Discovered new exit (range 15) 6683 | -6/Waste | Identified exit to Factory 6694 | -6/Waste | A Compactor rumbled back to life 6694 | -6/Waste | Spotted C-40 Crusher 6696 | -6/Waste | Allies destroyed C-40 Crusher 6718 | -6/Waste | Entered Factory 6718 | -6/Factory | Accompanied by 19 allies 6797 | -6/Factory | Build established: Scavenger-Tank 6873 | -6/Factory | Discovered new exit (range 12) 6897 | -6/Factory | Identified exit to Factory 7206 | -6/Factory | Identified exit to Garrison 7288 | -6/Factory | Garrison activated, responded to threat 7321 | -6/Factory | Lost 4 allies 7324 | -6/Factory | Entered Garrison 7324 | -6/Garrison | Accompanied by 15 allies 7326 | -6/Garrison | Triggered checkpoint 7378 | -6/Garrison | Triggered checkpoint 7405 | -6/Garrison | Expanded RIF knowledge: Hotswap 7429 | -6/Garrison | Garrison Relay disabled 7528 | -6/Garrison | Triggered checkpoint 7530 | -6/Garrison | Triggered checkpoint 7634 | -6/Garrison | Discovered new exit (range 10) 7640 | -6/Garrison | Spotted B-75 Beast 7647 | -6/Garrison | Spotted B-86 Titan 7648 | -6/Garrison | Identified exit to Factory 7656 | -6/Garrison | Entered Factory 7656 | -6/Factory | Accompanied by 7 allies 7730 | -6/Factory | Build established: Bothacker-Tank 7870 | -6/Factory | Identified exit to DSF 7880 | -6/Factory | Entered DSF 7880 | -6/DSF | Accompanied by 7 allies 7922 | -6/DSF | Additional patrols routed to DSF 8049 | -6/DSF | Discovered exit to Factory (range 16) 8074 | -6/DSF | Sterilization system engaged 8094 | -6/DSF | Ambient heat levels rising (+10) 8109 | -6/DSF | Ambient heat levels rising (+10) 8114 | -6/DSF | Entered Factory 8114 | -5/Factory | Accompanied by 6 allies 8114 | -5/Factory | Evolved 2 slots: Propulsion x1, Utility x1 8123 | -5/Factory | Discovered new exit (range 16) 8153 | -5/Factory | Identified exit to Upper Caves 8153 | -5/Factory | Identified exit to Extension 8494 | -5/Factory | Fabricated T-07 Excavator (x2) 8513 | -5/Factory | Garrison activated, responded to threat 8566 | -5/Factory | Lost 4 allies 8636 | -5/Factory | Lost 3 allies 8908 | -5/Factory | Lost 9 parts (2p3n4w) 9315 | -5/Factory | Core integrity fell below 50% 9350 | -5/Factory | Core integrity fell below 20% 9359 | -5/Factory | System corruption reached 10% 9367 | -5/Factory | Destroyed by P-70 Sage with High-powered Shock Rifle Last Messages --------------- 09330_ U-05 Engineer lays Concrete. 09333_ Acquired 50 matter. 09334_ K-01 Serf collects debris. 09338_ Penetrated by Slug. 09339_ K-01 Serf collects debris. 09339_ U-05 Engineer builds a Wall. 09343_ U-05 Engineer lays Concrete. 09345_ U-05 Engineer builds a Wall. 09346_ Targeting Computer destroyed. 09349_ U-05 Engineer lays Concrete. 09353_ U-05 Engineer builds a Wall. 09355_ Imp. Hacking Suite destroyed. 09355_ Penetrated by Slug. 09357_ U-05 Engineer lays Concrete. 09360_ Dropped Huge Storage Unit. 09360_ U-05 Engineer lays Concrete. 09361_ Penetrated by Slug. 09361_ U-05 Engineer lays Concrete. 09363_ Penetrated by Slug. 09364_ Relay Coupler [Grunt] destroyed. Map ----- +----------------------------------------------------+ | ?????????????????????????????????????????????????? | | ?????????????????????????????????????????????????? | | ????????????????????????????????????? """ ??????? | | ?????????????????????????????????? ?????? | | ????????????????????????????????? ##????? | | ??????????????????????????????? #+####+# ####?? | | ???????????????????????????????? #% #?? | | ????????????????????????????????# ### | | ????????????????????????????????? # # # | | ?????????????????????????????????? | | ??????????????????????????????????# # | | ????????????????????? ????????????# ## | | ????????????????????# ????????????# ## | | ????????????????????# ????????????# | | ????????????????#???# !???????????# ] # # | | ????????????????# ??? !???????????# # | | ???????????????## ##? ???????????# [ ! # | | ???????????????? ##+##?????????# !=! | | ????????????????? ?????????###/#"#########? | | ?????????????????? k ???????????#!###????????? | | ???????????????????? k ???????????#!#??????????? | | ?????????????????????# ???????????#[#??????????? | | ?????????????????????# ############!#??????????? | | ?????????????????????# [p!#??????????? | | ?????????????????????# !+??????????? | | ?????????????????????# @ ####??????????? | | ?????????????????????## ######## #?????????????? | | ???????????????????????????????# #?????????????? | | ???????????????????????????????# #?????????????? | | ???????????????????????????????# #?????????????? | | ???????????????????????????????# #?????????????? | | ??????????????????????????????? ?????????????? | | ?????????????????????????????? ????????????? | | ?????????????????????????????? #???????????? | | ?????????????????????????????+ +????######## | | ?????????????????????????????# #????# | | ?????????????????????????????# #????# | | ?????????????????????????????# #????# | | ??????????????????????????????# #?????# | | ??????????????????????????????? ??????# | | ??????????????????????????????????????????# | | ??????????????????????????????????????????# | | ??????????????????????????????????????????# | | ??????????????????????????????????????????# | | ??????????????????????????????????????????# | | ??????????????????????????????????????????# | | ??????????????????????????????????????????# | | ??????????????????????????????????????????######## | | ?????????????????????????????????????????????????? | | ?????????????????????????????????????????????????? | +----------------------------------------------------+ Best States ------------- Heat Dissipation 91 Coolant Potential 65 Energy Generation 32 Energy Capacity 515 Matter Stores 300 Matter Capacity 300 Sight Range 18 Terrain Scan Density 10 Armor Coverage 300 Resistance: TH 20 Propulsion Shielding 33 Evasion (%) 55 Targeting Accuracy 5 Launcher Accuracy 30 Recoil Reduction 5 Offensive Hacking 26 Relay Coupler Types 2 Relay Coupler Value 38 Authchip Count 1 Trap Extractor Capacity 4 Item Schematics ----------------- System Restoration Module | -6/Factory | Scanalyzed Antimatter Reactor | -6/Factory | Scanalyzed Robot Schematics ------------------ None Fabricated ------------ T-07 Excavator | x2 | -5/Factory | Preloaded Repaired ---------- Hvy. EM Pulse Gun | 10% | -10/Materials Imp. Heat Sink | 30% | -8/Materials Studied --------- None Alien Tech Used ----------------- None Achievements -------------- Hot Goods Let Me Out Of Here May I Have Another? Mindtrick Window Shopping You Will Be Upgraded Challenges ------------ None Game ------ Seed ImprinterMinesnifferAxe Manual? 0 Play Time 02:13:32 Cumulative 147.3 hours Start 2026.07.05 @ 19:06:26 End 2026.07.05 @ 21:25:14 Sessions 1 Manual Loads 0 Difficulty Rogue Special Mode None Game No. 120 Rogue 120 Adventurer 0 Explorer 0 Win Type - Total 0 Types 0/0/0/0/0/0/0/0/0/0 Lore% 51 Gallery% 49 Achievement% 31 Wizard Run 0 Options --------- Layout 1 ASCII 0 Keyboard 1 Movement Numpad Keybinds 0 Fullscreen 1 Font 24/Smallcaps Map View 50x35 Zoom Use 0% Tactical HUD 1 Map Filters NONE Filters NONE Steam 1 RUN: 43f64a40-b5d2-4b52-aefd-e90e774e365e